bitfinex-derivatives/quotes_SOLF0:USTF0_20250424
["timestamp","ask_amount","ask_price","bid_price","bid_amount"]
[1745487473249,6.75909325,146.82,146.77,34.39909325]
[1745487473552,6.8119,146.8,146.78,6.8125]
[1745487473752,6.8119,146.8,146.77,34.39909325]
[1745487474055,6.75909325,146.8,146.77,27.64]
[1745487474251,6.8125,146.79,146.77,27.64]
[1745487475152,6.8127,146.78,146.75,539.5]
[1745487475352,6.75909325,146.78,146.75,539.5]
[1745487475553,6.75909325,146.78,146.74,27.6]
[1745487475753,6.8141,146.75,146.74,27.6]
[1745487476652,6.815,146.74,146.71,6.8158]
[1745487476851,6.815,146.74,146.71,34.4158]
[1745487479360,6.75909325,146.76,146.71,27.6]
[1745487479361,6.8151,146.73,146.71,27.6]
[1745487479858,6.75909325,146.76,146.71,27.6]
[1745487480155,6.8146,146.74,146.71,27.6]
[1745487480759,6.75909325,146.76,146.71,27.6]
[1745487480958,6.75909325,146.74,146.71,27.6]
[1745487481459,6.8154,146.73,146.71,27.6]
[1745487482559,13.57389325,146.74,146.71,34.4159]
[1745487483961,6.8152,146.73,146.71,27.6]
[1745487484263,6.8152,146.73,146.68,539.38]
[1745487484264,6.75909325,146.73,146.68,573.75909325]
[1745487484660,6.8158,146.72,146.69,6.8167]
[1745487484958,6.75909325,146.73,146.68,573.75909325]
[1745487485159,6.75909325,146.75,146.7,6.75909325]
[1745487485360,6.8143,146.75,146.72,13.57439325]
[1745487487457,6.8146,146.74,146.72,6.75909325]
[1745487487663,6.8146,146.74,146.71,6.8158]
[1745487487859,6.75909325,146.75,146.7,6.75909325]
[1745487488364,6.8153,146.73,146.7,13.57539325]
[1745487488558,6.75909325,146.73,146.69,6.75909325]
[1745487488862,6.75909325,146.73,146.68,573.75909325]
[1745487489059,6.8158,146.72,146.69,6.8168]
[1745487492164,6.8163,146.71,146.68,580.57629325]
[1745487493970,6.8165,146.7,146.68,573.75909325]
[1745487494168,6.8165,146.7,146.68,34.37909325]
[1745487494570,6.8169,146.69,146.68,27.62]
[1745487495572,6.8167,146.7,146.68,27.62]
[1745487495771,6.75909325,146.73,146.68,34.37909325]
[1745487496171,6.8158,146.72,146.69,6.8168]
[1745487497272,13.57439325,146.73,146.7,6.8163]
[1745487497469,6.75909325,146.73,146.68,34.37909325]
[1745487497870,6.8158,146.72,146.69,6.8167]
[1745487498471,6.816,146.71,146.69,6.8167]
[1745487498673,6.75909325,146.71,146.61,539.66]
[1745487498875,6.75909325,146.71,146.65,6.75909325]
[1745487499078,6.8175,146.68,146.65,6.75909325]
[1745487499474,6.8175,146.68,146.65,13.57749325]
[1745487499974,6.8175,146.68,146.66,6.8183]
[1745487500171,6.75909325,146.71,146.62,27.62]
[1745487500474,6.8167,146.7,146.67,6.75909325]
[1745487500675,6.75909325,146.71,146.67,13.57669325]
[1745487501377,6.8169,146.69,146.67,6.75909325]
[1745487501676,6.75909325,146.71,146.66,34.438]
[1745487502381,5.9445,146.74,146.66,27.62]
[1745487502675,6.75909325,146.73,146.67,6.75909325]
[1745487502881,6.75909325,146.73,146.69,13.57599325]
[1745487503082,6.75909325,146.73,146.69,6.75909325]
[1745487503279,6.8162,146.71,146.69,6.75909325]
[1745487503587,6.75909325,146.73,146.69,6.75909325]
[1745487504382,6.8158,146.72,146.69,13.57579325]
[1745487504879,6.75909325,146.73,146.69,13.57579325]
[1745487505474,6.75909325,146.73,146.69,6.8167]
[1745487505681,6.75909325,146.73,146.68,13.57629325]
[1745487505881,6.816,146.71,146.68,13.57629325]
[1745487506081,6.75909325,146.73,146.68,6.75909325]
[1745487506281,6.75909325,146.73,146.68,13.57619325]
[1745487506683,6.816,146.71,146.68,13.57619325]
[1745487506884,6.75909325,146.73,146.68,13.57619325]
[1745487507380,6.75909325,146.73,146.69,6.8168]
[1745487507576,6.8159,146.72,146.69,6.8168]
[1745487508688,6.8153,146.73,146.7,6.75909325]
[1745487509182,6.8153,146.73,146.7,34.33909325]
[1745487510290,6.8153,146.73,146.71,6.8159]
[1745487510490,6.8153,146.73,146.7,34.33909325]
[1745487510891,6.8153,146.73,146.7,41.15529325]
[1745487513592,6.8165,146.7,146.68,6.8173]
[1745487513791,6.75909325,146.7,146.66,27.58]
[1745487514194,6.8178,146.68,146.66,27.58]
[1745487514593,6.75909325,146.7,146.66,27.58]
[1745487514792,6.8171,146.69,146.66,34.33909325]
[1745487516196,6.75909325,146.7,146.66,27.58]
[1745487516393,6.75909325,146.68,146.66,27.58]
[1745487516889,6.75909325,146.7,146.66,27.58]
[1745487517495,6.8172,146.69,146.66,27.58]
[1745487519284,6.8172,146.69,146.66,34.3983]
[1745487519490,6.75909325,146.7,146.66,27.58]
[1745487519694,6.75909325,146.68,146.66,27.58]
[1745487519995,33.5163,146.74,146.66,27.58]
[1745487520194,6.75909325,146.7,146.66,27.58]
[1745487520894,6.8175,146.68,146.66,27.58]
[1745487522292,6.8175,146.68,146.66,34.3983]
[1745487522491,6.8175,146.68,146.66,27.58]
[1745487522895,6.75909325,146.68,146.61,539.66]
[1745487523091,6.75909325,146.66,146.62,27.58]
[1745487523597,6.8191,146.65,146.62,34.4]
[1745487523989,6.8191,146.65,146.62,27.58]
[1745487525194,6.75909325,146.66,146.62,27.58]
[1745487525395,27.58,146.7,146.62,27.58]
[1745487525596,6.75909325,146.64,146.62,27.58]
[1745487525795,6.8197,146.63,146.62,27.58]
[1745487529200,6.8203,146.62,146.59,27.58]
[1745487529396,6.8203,146.62,146.6,6.75909325]
[1745487529596,6.75909325,146.64,146.6,6.75909325]
[1745487529597,6.75909325,146.65,146.6,6.75909325]
[1745487530796,6.8203,146.62,146.6,6.75909325]
[1745487531602,6.8203,146.62,146.59,34.4013]
[1745487531902,6.8203,146.62,146.6,6.75909325]
[1745487532103,6.82,146.63,146.6,6.75909325]
[1745487532302,6.75909325,146.65,146.6,6.75909325]
[1745487532602,6.8199,146.63,146.59,41.16039325]
[1745487532902,6.75909325,146.64,146.59,41.16039325]
[1745487533103,6.8202,146.63,146.59,41.16039325]
[1745487533601,6.8202,146.62,146.59,41.16039325]
[1745487535299,6.8202,146.62,146.59,13.58039325]
[1745487535507,6.75909325,146.6,146.56,27.56]
[1745487535701,3.9959,146.63,146.56,27.56]
[1745487535901,6.75909325,146.6,146.56,34.31909325]
[1745487536406,6.8214,146.6,146.56,34.31909325]
[1745487536607,3.9959,146.63,146.58,6.75909325]
[1745487536806,10.75499325,146.63,146.58,6.75909325]
[1745487537007,6.821,146.61,146.58,6.75909325]
[1745487539808,6.8211,146.6,146.58,6.75909325]
[1745487540510,6.8211,146.6,146.57,6.8222]
[1745487541013,6.8204,146.62,146.58,6.75909325]
[1745487541206,6.75909325,146.63,146.58,6.75909325]
[1745487541711,6.8206,146.62,146.58,13.58079325]
[1745487541912,6.75909325,146.63,146.58,6.75909325]
[1745487542110,6.75909325,146.63,146.56,27.56]
[1745487542312,6.822,146.59,146.56,34.31909325]
[1745487543117,6.822,146.59,146.56,41.14199325]
[1745487546211,6.8213,146.6,146.57,6.8225]
[1745487546617,6.75909325,146.61,146.57,6.8225]
[1745487546910,6.8214,146.6,146.57,6.8225]
[1745487547114,6.8214,146.6,146.56,34.31909325]
[1745487547618,6.8214,146.6,146.57,6.8222]
[1745487548519,13.57999325,146.61,146.58,6.8219]
[1745487549018,6.8212,146.6,146.57,6.8222]
[1745487552119,6.8216,146.59,146.56,41.14189325]
[1745487553415,1.9398,146.64,146.56,34.31909325]
[1745487553714,8.69889325,146.64,146.58,6.75909325]
[1745487554022,6.8202,146.62,146.59,6.8212]
[1745487554518,6.8201,146.63,146.6,13.57999325]
[1745487554718,6.8201,146.63,146.6,34.31909325]
[1745487555423,6.8195,146.64,146.61,6.8206]
[1745487556420,8.82729325,146.67,146.62,6.75909325]
[1745487556626,6.75909325,146.69,146.64,6.75909325]
[1745487556824,6.75909325,146.69,146.64,34.31909325]
[1745487557119,6.8177,146.68,146.65,6.8188]
[1745487558929,6.75909325,146.7,146.64,34.31909325]
[1745487560226,6.8176,146.68,146.65,6.8185]
[1745487563430,6.8182,146.67,146.64,34.31909325]
[1745487563829,6.75909325,146.65,146.61,27.56]
[1745487564128,6.75909325,146.64,146.61,27.56]
[1745487564929,13.57859325,146.64,146.61,34.3804]
[1745487565429,6.8195,146.64,146.61,41.13949325]
[1745487566227,6.8195,146.64,146.61,34.3804]
[1745487566428,6.8195,146.64,146.61,27.56]
[1745487566831,6.8198,146.63,146.61,27.56]
[1745487568228,6.8202,146.62,146.61,27.56]
[1745487568433,6.75909325,146.62,146.58,34.29909325]
[1745487569141,6.75909325,146.62,146.58,41.12089325]
[1745487569737,13.57949325,146.62,146.58,41.12089325]
[1745487570036,6.75909325,146.62,146.58,41.12089325]
[1745487570639,6.821,146.61,146.58,41.12089325]
[1745487570838,6.75909325,146.62,146.58,34.29909325]
[1745487571139,6.75909325,146.63,146.58,34.29909325]
[1745487571337,6.75909325,146.64,146.59,6.8213]
[1745487571638,6.75909325,146.64,146.58,34.29909325]
[1745487571838,6.75909325,146.65,146.6,6.75909325]
[1745487572742,6.8195,146.64,146.61,6.8204]
[1745487572943,6.75909325,146.65,146.6,6.75909325]
[1745487573245,6.8195,146.64,146.6,13.57969325]
[1745487573946,13.57809325,146.65,146.6,6.75909325]
[1745487574141,6.75909325,146.67,146.62,6.75909325]
[1745487574445,6.75909325,146.67,146.62,34.29909325]
[1745487574647,6.8185,146.66,146.63,6.8194]
[1745487575152,6.8185,146.66,146.62,34.29909325]
[1745487575348,6.8185,146.66,146.63,6.8196]
[1745487575544,6.8185,146.66,146.62,34.29909325]
[1745487575743,13.57709325,146.67,146.62,34.29909325]
[1745487575944,13.57709325,146.67,146.63,6.8195]
[1745487576144,13.57709325,146.67,146.62,34.29909325]
[1745487576747,13.57709325,146.67,146.64,6.8192]
[1745487580946,6.75909325,146.69,146.64,6.75909325]
[1745487581849,6.8176,146.68,146.65,6.8185]
[1745487582752,6.8179,146.67,146.65,6.8185]
[1745487585253,6.75909325,146.69,146.64,6.75909325]
[1745487585661,6.8174,146.68,146.64,6.75909325]
[1745487585953,6.8174,146.68,146.65,6.8185]
[1745487589156,6.8179,146.67,146.64,13.57809325]
[1745487589757,6.8179,146.67,146.65,6.8188]
[1745487589954,6.8176,146.68,146.65,6.8188]
[1745487593757,13.57619325,146.69,146.66,6.8182]
[1745487593954,6.75909325,146.7,146.66,34.29909325]
[1745487594461,6.8173,146.69,146.66,41.11719325]
[1745487594857,6.75909325,146.7,146.66,41.11719325]
[1745487595060,6.817,146.69,146.66,41.11719325]
[1745487595555,6.75909325,146.7,146.66,34.29909325]
[1745487596159,6.8174,146.68,146.66,34.29909325]
[1745487596857,6.8178,146.67,146.66,27.54]
[1745487597057,6.75909325,146.68,146.63,27.52]
[1745487597255,6.75909325,146.66,146.63,27.52]
[1745487597455,6.75909325,146.66,146.63,34.3395]
[1745487597755,6.75909325,146.66,146.63,27.52]
[1745487597959,13.57779325,146.66,146.63,27.52]
[1745487598558,6.8187,146.66,146.63,27.52]
[1745487598861,6.8188,146.65,146.63,27.52]
[1745487599459,6.75909325,146.68,146.63,34.3396]
[1745487600058,6.75909325,146.68,146.63,27.52]
[1745487600660,6.75909325,146.68,146.63,34.3396]
[1745487601458,6.8186,146.66,146.63,34.3396]
[1745487605357,6.8181,146.67,146.64,6.8191]
[1745487605660,6.75909325,146.7,146.64,6.75909325]
[1745487606663,6.8176,146.68,146.65,6.8186]
[1745487606961,6.75909325,146.7,146.65,6.8186]
[1745487607163,6.8183,146.66,146.64,6.75909325]
[1745487608264,6.8183,146.66,146.64,13.57819325]
[1745487609265,6.818,146.67,146.64,13.57819325]
[1745487610166,6.75909325,146.7,146.64,6.75909325]
[1745487611269,6.8174,146.68,146.66,6.8181]
[1745487611865,6.8174,146.68,146.65,6.8185]
[1745487619875,6.8179,146.67,146.65,6.8185]
[1745487620377,6.8179,146.67,146.64,13.57809325]
[1745487620975,6.8179,146.67,146.65,6.8187]
[1745487623983,6.8176,146.68,146.65,6.8187]
[1745487624682,6.8176,146.68,146.66,6.8182]
[1745487624882,12.83079325,146.72,146.66,6.75909325]
[1745487625078,12.83079325,146.72,146.68,6.75909325]
[1745487625278,6.8161,146.71,146.68,6.75909325]
[1745487625784,6.8161,146.71,146.68,13.57619325]
[1745487630191,6.75909325,146.74,146.69,6.75909325]
[1745487630586,6.8155,146.73,146.7,6.8162]
[1745487630787,6.75909325,146.74,146.7,6.8162]
[1745487631291,6.8151,146.73,146.7,6.8162]
[1745487631788,6.75909325,146.74,146.7,6.8162]
[1745487631985,6.8151,146.73,146.7,6.8162]
[1745487632184,6.75909325,146.74,146.7,6.8162]
[1745487632488,6.8153,146.73,146.7,6.8162]
[1745487634087,6.8153,146.73,146.71,6.8159]
[1745487634481,6.8158,146.72,146.69,6.75909325]
[1745487634785,6.75909325,146.73,146.69,13.57579325]
[1745487635092,6.8158,146.72,146.69,13.57579325]
[1745487635482,6.75909325,146.73,146.68,6.8171]
[1745487635685,13.57539325,146.71,146.68,6.8171]
[1745487636589,13.57539325,146.71,146.67,41.05669325]
[1745487636890,6.8165,146.7,146.67,41.05669325]
[1745487637892,6.8165,146.7,146.68,6.8174]
[1745487638289,6.8165,146.7,146.67,34.23909325]
[1745487638489,6.8165,146.7,146.67,41.05659325]
[1745487639087,6.8162,146.71,146.68,13.57639325]
[1745487639389,6.75909325,146.73,146.68,6.75909325]
[1745487639785,6.75909325,146.75,146.7,6.75909325]
[1745487640384,6.8156,146.72,146.7,6.75909325]
[1745487641492,6.816,146.71,146.7,6.75909325]
[1745487641884,6.75909325,146.73,146.7,6.75909325]
[1745487642490,6.8158,146.72,146.7,6.75909325]
[1745487643693,6.8158,146.72,146.69,6.8168]
[1745487644493,6.8158,146.72,146.7,6.8164]
[1745487646696,6.8158,146.72,146.69,6.8167]
[1745487651192,4.0163,146.77,146.68,6.75909325]
[1745487651397,6.75909325,146.74,146.69,6.75909325]
[1745487651588,6.75909325,146.74,146.68,6.75909325]
[1745487651789,13.57499325,146.72,146.68,6.75909325]
[1745487652193,6.816,146.71,146.68,6.75909325]
[1745487654594,6.8167,146.7,146.68,6.75909325]
[1745487654801,6.75909325,146.7,146.67,27.48]
[1745487655795,6.8173,146.69,146.67,27.48]
[1745487656005,6.75909325,146.7,146.67,27.48]
[1745487656501,6.75909325,146.7,146.64,34.19909325]
[1745487657001,6.8176,146.68,146.64,41.01819325]
[1745487657803,6.8179,146.67,146.64,41.01819325]
[1745487658701,6.8179,146.67,146.64,34.19909325]
[1745487659500,6.8179,146.67,146.64,41.01819325]
[1745487660494,6.8179,146.67,146.64,34.2591]
[1745487660696,6.8179,146.67,146.64,41.01819325]
[1745487661494,6.8176,146.68,146.64,41.01819325]
[1745487662003,6.8181,146.67,146.64,34.19909325]
[1745487662302,6.8181,146.67,146.65,6.75909325]
[1745487664100,6.8176,146.68,146.65,6.75909325]
[1745487665402,6.8179,146.67,146.65,6.75909325]
[1745487667503,6.8176,146.68,146.65,6.75909325]
[1745487668504,6.8176,146.68,146.65,13.57789325]
[1745487670005,13.57619325,146.69,146.66,6.8183]
[1745487670206,13.57619325,146.69,146.65,6.75909325]
[1745487670706,6.8174,146.68,146.65,13.57749325]
[1745487671907,13.57619325,146.69,146.65,13.57749325]
[1745487673908,6.8171,146.69,146.65,13.57749325]
[1745487675514,6.8171,146.69,146.66,6.8183]
[1745487675812,6.75909325,146.72,146.67,6.75909325]
[1745487676208,6.75909325,146.72,146.68,6.817]
[1745487676515,6.8162,146.71,146.68,6.817]
[1745487676707,6.75909325,146.74,146.68,27.44]
[1745487676907,6.75909325,146.74,146.7,6.8164]
[1745487677213,6.75909325,146.76,146.71,6.75909325]
[1745487677512,6.75909325,146.76,146.72,6.8152]
[1745487677712,4.0163,146.77,146.73,6.75909325]
[1745487678013,8.69489325,146.78,146.73,6.75909325]
[1745487678412,6.8135,146.77,146.74,6.8143]
[1745487680918,6.8137,146.76,146.74,6.8143]
[1745487681714,6.8134,146.77,146.74,6.8143]
[1745487682316,6.75909325,146.8,146.74,6.75909325]
[1745487682817,6.813,146.78,146.75,6.814]
[1745487683515,6.8124,146.79,146.76,13.57239325]
[1745487684218,6.8128,146.78,146.76,6.75909325]
[1745487684516,6.75909325,146.8,146.76,6.75909325]
[1745487684916,6.8128,146.78,146.76,6.75909325]
[1745487686217,6.75909325,146.78,146.74,6.75909325]
[1745487686421,6.75909325,146.77,146.73,6.75909325]
[1745487686617,6.75909325,146.77,146.72,34.19909325]
[1745487686818,6.8145,146.75,146.72,41.01459325]
[1745487688713,6.8148,146.74,146.72,27.44]
[1745487688919,6.75909325,146.75,146.72,27.44]
[1745487689317,6.815,146.74,146.72,27.44]
[1745487690021,6.8143,146.75,146.72,27.44]
[1745487690922,6.75909325,146.76,146.72,27.44]
[1745487691721,13.57299325,146.76,146.73,6.8148]
[1745487691921,27.4,146.8,146.72,34.19909325]
[1745487692117,13.57249325,146.77,146.74,6.8146]
[1745487692518,6.75909325,146.77,146.74,6.8146]
[1745487694125,6.75909325,146.76,146.72,27.44]
[1745487694325,6.75909325,146.75,146.72,27.44]
[1745487694623,6.8148,146.74,146.72,34.2553]
[1745487695322,6.75909325,146.73,146.68,539.8]
[1745487695520,15.5566,146.82,146.7,6.75909325]
[1745487695818,6.75909325,146.77,146.73,6.815]
[1745487696024,6.814,146.76,146.73,6.815]
[1745487697328,6.75909325,146.77,146.73,6.815]
[1745487697929,6.8143,146.75,146.73,6.815]
[1745487700534,6.8143,146.75,146.72,13.57439325]
[1745487703537,6.8147,146.74,146.71,13.57479325]
[1745487706842,6.8147,146.74,146.72,6.8155]
[1745487707343,6.8144,146.75,146.72,6.8155]
[1745487709745,6.8139,146.76,146.73,6.8148]
[1745487713448,6.8142,146.75,146.73,6.8148]
[1745487713747,6.75909325,146.77,146.73,6.8148]
[1745487714651,6.8139,146.76,146.74,6.8145]
[1745487714843,29.3341,146.82,146.75,6.75909325]
[1745487715051,6.75909325,146.8,146.75,6.75909325]
[1745487715252,6.8125,146.79,146.76,6.8134]
[1745487715749,6.8119,146.8,146.77,6.8129]
[1745487716852,6.8123,146.79,146.77,6.8129]
[1745487717551,6.8123,146.79,146.76,6.8134]
[1745487718054,6.8123,146.79,146.75,6.75909325]
[1745487718256,6.8123,146.79,146.76,6.8136]
[1745487718451,6.8128,146.78,146.76,6.8136]
[1745487718652,6.8128,146.78,146.75,6.75909325]
[1745487718852,6.8128,146.78,146.75,13.57299325]
[1745487719557,6.8128,146.78,146.76,6.8136]
[1745487719951,2.094,146.8,146.74,27.34]
[1745487720255,6.75909325,146.77,146.74,27.34]
[1745487720756,13.57279325,146.77,146.74,27.34]
[1745487720953,6.75909325,146.77,146.74,27.34]
[1745487721652,6.75909325,146.77,146.73,6.75909325]
[1745487722557,6.8145,146.75,146.73,6.75909325]
[1745487724460,6.8145,146.75,146.73,13.57409325]
[1745487724654,6.75909325,146.77,146.73,13.57409325]
[1745487724953,6.8139,146.76,146.73,13.57409325]
[1745487727561,6.8139,146.76,146.74,6.8146]
[1745487727759,6.8139,146.76,146.73,6.75909325]
[1745487728662,6.75909325,146.75,146.66,539.68]
[1745487728963,6.75909325,146.74,146.69,6.75909325]
[1745487729155,13.57389325,146.74,146.7,6.8161]
[1745487729855,6.8151,146.73,146.7,6.8161]
[1745487737866,6.8151,146.73,146.71,6.8159]
[1745487738067,6.8151,146.73,146.68,27.34]
[1745487738068,6.75909325,146.76,146.72,6.75909325]
[1745487738268,6.75909325,146.78,146.74,6.75909325]
[1745487738466,6.75909325,146.78,146.74,13.57359325]
[1745487738767,2.094,146.8,146.75,6.75909325]
[1745487739872,6.8125,146.79,146.76,6.8134]
[1745487740273,6.75909325,146.79,146.75,6.75909325]
[1745487740967,13.57179325,146.79,146.75,13.57299325]
[1745487741466,6.8128,146.78,146.75,13.57299325]
[1745487741668,6.75909325,146.77,146.73,6.75909325]
[1745487742868,6.75909325,146.77,146.74,6.8145]
[1745487743269,13.57239325,146.77,146.74,6.8145]
[1745487744671,6.75909325,146.77,146.74,6.8145]
[1745487745773,13.57229325,146.77,146.74,6.8145]
[1745487748074,6.75909325,146.77,146.74,6.8145]
[1745487748269,6.75909325,146.79,146.75,6.75909325]
[1745487748673,13.57139325,146.79,146.75,6.75909325]
[1745487748877,13.57139325,146.79,146.76,6.8134]
[1745487751977,13.57139325,146.79,146.75,13.57289325]
[1745487752178,6.75909325,146.79,146.74,6.75909325]
[1745487752377,6.75909325,146.79,146.73,8.85529325]
[1745487752679,13.57199325,146.78,146.75,6.8141]
[1745487761989,6.8133,146.77,146.75,6.8141]
[1745487762392,13.57209325,146.78,146.75,6.8141]
[1745487763089,6.75909325,146.76,146.72,34.09909325]
[1745487763290,6.75909325,146.76,146.72,27.34]
[1745487763491,6.75909325,146.74,146.72,27.34]
[1745487763694,6.75909325,146.74,146.69,34.1167]
[1745487763889,6.75909325,146.72,146.69,34.1167]
[1745487764086,6.75909325,146.72,146.69,27.3]
[1745487764291,13.57489325,146.72,146.69,34.1169]
[1745487765297,6.816,146.71,146.69,27.3]
[1745487767400,13.57549325,146.7,146.69,27.3]
[1745487767702,13.57549325,146.7,146.67,6.8176]
[1745487770298,6.8164,146.7,146.67,6.8176]
[1745487770505,13.57529325,146.71,146.67,6.8176]
[1745487771202,6.75909325,146.72,146.68,6.75909325]
[1745487771703,13.57399325,146.74,146.7,6.8161]
[1745487771905,13.57399325,146.74,146.7,13.57519325]
[1745487772605,6.75909325,146.75,146.7,6.75909325]
[1745487772802,10.79089325,146.77,146.72,6.75909325]
[1745487773103,6.8147,146.74,146.72,6.75909325]
[1745487773499,6.8147,146.74,146.72,13.57459325]
[1745487773903,6.8144,146.75,146.72,13.57459325]
[1745487774608,6.8146,146.74,146.72,6.8155]
[1745487776508,13.57339325,146.75,146.72,6.8155]
[1745487776706,2.0468,146.77,146.72,6.75909325]
[1745487776908,2.0468,146.77,146.74,6.75909325]
[1745487777107,8.8603,146.77,146.74,6.75909325]
[1745487777308,6.8135,146.77,146.74,13.57349325]
[1745487777707,2.094,146.8,146.76,6.75909325]
[1745487778405,2.094,146.8,146.78,6.75909325]
[1745487778605,2.094,146.8,146.74,27.26]
[1745487778606,2.094,146.8,146.76,6.75909325]
[1745487779010,6.813,146.78,146.76,6.75909325]
[1745487780905,6.813,146.78,146.76,13.57249325]
[1745487781208,2.094,146.8,146.76,6.75909325]
[1745487781509,6.813,146.78,146.76,6.75909325]
[1745487781705,6.75909325,146.82,146.76,6.75909325]
[1745487781905,6.75909325,146.82,146.78,6.75909325]
[1745487782608,6.8122,146.8,146.78,6.75909325]
[1745487782910,6.75909325,146.82,146.77,6.813]
[1745487784313,6.8125,146.79,146.77,6.813]
[1745487784910,6.8125,146.79,146.76,13.57249325]
[1745487786012,6.8125,146.79,146.77,6.8131]
[1745487786208,6.8125,146.79,146.76,6.75909325]
[1745487786510,6.8125,146.79,146.76,13.57249325]
[1745487786907,6.75909325,146.78,146.71,27.24]
[1745487787209,6.75909325,146.78,146.73,13.57389325]
[1745487787410,6.814,146.76,146.73,13.57389325]
[1745487787611,6.75909325,146.78,146.73,6.75909325]
[1745487788012,6.8144,146.75,146.73,6.75909325]
[1745487789210,6.8144,146.75,146.73,13.57409325]
[1745487789511,6.8138,146.76,146.73,13.57409325]
[1745487791111,6.8142,146.75,146.73,13.57409325]
[1745487793116,6.8142,146.75,146.73,6.75909325]
[1745487793518,6.8142,146.75,146.72,13.57439325]
[1745487793717,6.8146,146.74,146.72,13.57439325]
[1745487794015,6.75909325,146.78,146.72,13.57439325]
[1745487794216,6.8143,146.75,146.72,13.57439325]
[1745487795018,6.8146,146.74,146.72,13.57439325]
[1745487796915,6.8146,146.74,146.72,6.75909325]
[1745487797818,6.8143,146.75,146.72,13.57439325]
[1745487798015,6.8143,146.75,146.72,6.75909325]
[1745487798519,6.8139,146.76,146.73,6.8149]
[1745487799522,6.8134,146.77,146.74,13.57349325]
[1745487800219,6.8138,146.76,146.74,13.57349325]
[1745487801020,6.8138,146.76,146.74,6.75909325]
[1745487801420,6.8135,146.77,146.74,6.75909325]
[1745487801721,6.75909325,146.78,146.74,13.57349325]
[1745487802820,6.8139,146.76,146.74,13.57349325]
[1745487803221,6.8139,146.76,146.74,6.75909325]
[1745487804117,6.8139,146.76,146.74,13.57359325]
[1745487804318,6.75909325,146.78,146.74,13.57359325]
[1745487804817,6.8133,146.77,146.74,13.57359325]
[1745487807125,6.8137,146.76,146.74,13.57359325]
[1745487809825,6.8137,146.76,146.74,6.75909325]
[1745487810925,6.8141,146.75,146.74,6.75909325]
[1745487815028,6.8139,146.76,146.74,6.75909325]
[1745487816329,6.8141,146.75,146.74,6.75909325]
[1745487817025,6.8146,146.74,146.73,6.75909325]
[1745487817832,6.8144,146.75,146.73,6.75909325]
[1745487818332,6.75909325,146.78,146.73,6.75909325]
[1745487819230,6.8146,146.74,146.73,6.75909325]
[1745487820630,6.8146,146.74,146.72,6.75909325]
[1745487820827,6.8151,146.73,146.72,6.75909325]
[1745487821334,6.8149,146.74,146.72,6.75909325]
[1745487821532,6.75909325,146.74,146.71,27.24]
[1745487821727,6.8154,146.73,146.71,27.24]
[1745487821933,6.75909325,146.74,146.71,27.24]
[1745487822132,6.75909325,146.73,146.69,6.8166]
[1745487822332,6.8158,146.72,146.69,6.8166]
[1745487822935,13.57439325,146.73,146.69,6.8166]
[1745487823238,6.8153,146.73,146.7,6.8164]
[1745487825834,6.8148,146.74,146.71,6.8159]
[1745487826242,6.75909325,146.75,146.71,6.8159]
[1745487826436,6.8149,146.74,146.71,6.8159]
[1745487826935,6.75909325,146.75,146.71,6.8159]
[1745487827237,6.8151,146.73,146.71,6.8159]
[1745487827538,6.8151,146.73,146.7,6.8162]
[1745487828639,6.8156,146.72,146.7,6.8162]
[1745487829145,6.8156,146.72,146.69,13.57579325]
[1745487829336,6.75909325,146.73,146.69,13.57579325]
[1745487829337,6.8161,146.71,146.69,6.75909325]
[1745487829535,6.75909325,146.73,146.68,27.2]
[1745487829740,6.75909325,146.73,146.68,34.0171]
[1745487829940,6.8163,146.71,146.68,34.0171]
[1745487832738,6.8165,146.7,146.68,27.2]
[1745487834142,6.8162,146.71,146.68,34.0173]
[1745487835345,6.8165,146.7,146.68,34.0173]
[1745487836242,6.8165,146.7,146.68,27.2]
[1745487837642,6.8162,146.71,146.68,34.0173]
[1745487838143,6.75909325,146.73,146.68,27.2]
[1745487838337,6.75909325,146.71,146.68,27.2]
[1745487838641,6.75909325,146.71,146.67,6.75909325]